fUST/lending_fUST_20240927
["ID","MTS","AMOUNT","RATE_DAILY","PERIOD"]
[339283030,1727437841270,-168.942616,0.000199,2]
[339283032,1727437841280,-500.0,0.00019973,2]
[339283034,1727437841289,-500.13969444,0.00019973,2]
[339283036,1727437841298,-500.0,0.00019973,2]
[339283038,1727437841308,-500.0,0.00019973,2]
[339283040,1727437841317,-500.39443641,0.00019973,2]
[339283053,1727437841419,-500.0,0.00019973,2]
[339283056,1727437841443,-500.50451328,0.00019973,2]
[339283058,1727437841452,-151.0,0.00019973,2]
[339283060,1727437841461,-151.0,0.00019973,2]
[339283062,1727437841470,-151.0,0.00019973,2]
[339283064,1727437841480,-151.0,0.00019973,2]
[339283066,1727437841489,-151.0,0.00019973,2]
[339283068,1727437841499,-12275.18448806,0.0001999,2]
[339283070,1727437841511,-151.0,0.0001999,2]
[339283072,1727437841521,-151.0,0.0001999,2]
[339283074,1727437841530,-201.931447,0.0001999,2]
[339283076,1727437841541,-201.931447,0.0001999,2]
[339283078,1727437841551,-295.36111,0.0001999,2]
[339283080,1727437841560,-151.0,0.0001999,2]
[339283082,1727437841569,-151.0,0.0001999,2]
[339283084,1727437841578,-310.816321,0.0001999,2]
[339283086,1727437841588,-151.0,0.0001999,2]
[339283088,1727437841598,-151.0,0.0001999,2]
[339283090,1727437841610,-151.0,0.0001999,2]
[339283092,1727437841620,-151.0,0.0001999,2]
[339283094,1727437841631,-151.0,0.0001999,2]
[339283096,1727437841641,-151.0,0.0001999,2]
[339283098,1727437841651,-151.0,0.0001999,2]
[339283100,1727437841659,-151.0,0.0001999,2]
[339283102,1727437841668,-151.0,0.0001999,2]
[339283104,1727437841677,-151.0,0.0001999,2]
[339283106,1727437841687,-151.0,0.0001999,2]
[339283108,1727437841696,-258.68475,0.0001999,2]
[339283110,1727437841706,-151.0,0.0001999,2]
[339283112,1727437841715,-151.0,0.0001999,2]
[339283114,1727437841724,-151.0,0.0001999,2]
[339283116,1727437841735,-151.0,0.0001999,2]
[339283118,1727437841744,-332.134182,0.0001999,2]
[339283120,1727437841754,-332.134182,0.0001999,2]
[339283122,1727437841763,-151.203174,0.0001999,2]
[339283124,1727437841772,-151.203174,0.0001999,2]
[339283125,1727437841782,-286.854387,0.0001999,2]
[339283128,1727437841793,-151.0,0.0001999,2]
[339283130,1727437841804,-151.0,0.0001999,2]
[339283132,1727437841815,-197.147342,0.0001999,2]
[339283134,1727437841825,-197.147342,0.0001999,2]
[339283136,1727437841835,-160.0,0.00019999,2]
[339283138,1727437841846,-20451.501302,0.0002,2]
[339283140,1727437841856,-2975.06762685,0.0002,2]
[339283142,1727437841866,-272.0,0.0002,2]
[339283144,1727437841875,-150.112233,0.0002,2]
[339283146,1727437841884,-85976.09351408,0.0002,2]
[339283148,1727437841893,-200.0,0.0002,2]
[339283150,1727437841903,-201.931447,0.0002,2]
[339283153,1727437841916,-201.931447,0.0002,2]
[339283155,1727437841926,-151.0,0.0002,2]
[339283157,1727437841935,-151.0,0.0002,2]
[339283159,1727437841944,-151.0,0.0002,2]
[339283161,1727437841955,-151.0,0.0002,2]
[339283163,1727437841964,-500.0,0.0002,2]
[339283165,1727437841973,-151.0,0.0002,2]
[339283167,1727437841982,-151.0,0.0002,2]
[339283168,1727437841992,-894.05,0.0002,2]
[339283170,1727437842002,-500.0,0.0002,2]
[339283172,1727437842011,-500.0,0.0002,2]
[339283174,1727437842020,-196.951696,0.0002,2]
[339283176,1727437842030,-196.951696,0.0002,2]
[339283178,1727437842039,-151.0,0.0002,2]
[339283180,1727437842048,-151.0,0.0002,2]
[339283182,1727437842058,-766.92,0.0002,2]
[339283183,1727437842067,-151.0,0.0002,2]
[339283184,1727437842076,-151.0,0.0002,2]
[339283185,1727437842085,-500.0,0.0002,2]
[339283186,1727437842094,-790.06,0.0002,2]
[339283187,1727437842103,-310.816321,0.0002,2]
[339283188,1727437842113,-885.05,0.0002,2]
[339283189,1727437842122,-151.0,0.0002,2]
[339283190,1727437842132,-500.0,0.0002,2]
[339283191,1727437842141,-151.0,0.0002,2]
[339283192,1727437842150,-151.0,0.0002,2]
[339283193,1727437842159,-500.0,0.0002,2]
[339283194,1727437842168,-151.0,0.0002,2]
[339283195,1727437842177,-151.0,0.0002,2]
[339283196,1727437842186,-216.443394,0.0002,2]
[339283197,1727437842195,-151.0,0.0002,2]
[339283198,1727437842205,-151.0,0.0002,2]
[339283199,1727437842215,-151.0,0.0002,2]
[339283200,1727437842224,-151.0,0.0002,2]
[339283201,1727437842233,-151.0,0.0002,2]
[339283202,1727437842242,-151.0,0.0002,2]
[339283203,1727437842251,-176.2898464,0.0002,2]
[339283204,1727437842260,-151.0,0.0002,2]
[339283205,1727437842269,-151.445429,0.0002,2]
[339283207,1727437842278,-151.445429,0.0002,2]
[339283209,1727437842287,-151.445429,0.0002,2]
[339283211,1727437842297,-151.445429,0.0002,2]
[339283213,1727437842306,-500.0,0.0002,2]
[339283215,1727437842315,-1085.38,0.0002,2]
[339283217,1727437842323,-151.0,0.0002,2]
[339283219,1727437842332,-500.0,0.0002,2]
[339283221,1727437842341,-500.0,0.0002,2]
[339283223,1727437842350,-192.386243,0.0002,2]
[339283225,1727437842360,-192.386243,0.0002,2]
[339283227,1727437842369,-2352.98,0.0002,2]
[339283229,1727437842378,-192.386243,0.0002,2]
[339283231,1727437842387,-192.386243,0.0002,2]
[339283233,1727437842396,-151.0,0.0002,2]
[339283235,1727437842405,-193.425245,0.0002,2]
[339283237,1727437842414,-193.425245,0.0002,2]
[339283238,1727437842423,-193.425245,0.0002,2]
[339283240,1727437842432,-193.425245,0.0002,2]
[339283242,1727437842441,-1489.98,0.0002,2]
[339283244,1727437842450,-151.0,0.0002,2]
[339283246,1727437842459,-151.0,0.0002,2]
[339283248,1727437842468,-1742.93,0.0002,2]
[339283250,1727437842480,-151.0,0.0002,2]
[339283252,1727437842489,-151.0,0.0002,2]
[339283254,1727437842498,-332.134182,0.0002,2]
[339283256,1727437842507,-332.134182,0.0002,2]
[339283259,1727437842518,-500.0,0.0002,2]
[339283261,1727437842528,-500.0,0.0002,2]
[339283263,1727437842538,-151.203174,0.0002,2]
[339283265,1727437842548,-151.203174,0.0002,2]
[339283267,1727437842558,-500.0,0.0002,2]
[339283269,1727437842567,-151.0,0.0002,2]
[339283271,1727437842578,-500.0,0.0002,2]
[339283273,1727437842589,-500.0,0.0002,2]
[339283275,1727437842598,-197.147342,0.0002,2]
[339283277,1727437842608,-197.147342,0.0002,2]
[339283279,1727437842617,-1448.63,0.0002,2]
[339283281,1727437842626,-13072.79,0.0002,2]
[339283283,1727437842638,-465.08280313,0.00020138,2]
[339283285,1727437842648,-3848.0,0.00020173,2]
[339283287,1727437842657,-14809.65343382,0.00020173,2]
[339283289,1727437842666,-200.0,0.00020273,2]
[339283291,1727437842675,-500.0,0.00020273,2]
[339283293,1727437842683,-894.05,0.00020273,2]
[339283295,1727437842692,-500.0,0.00020273,2]
[339283297,1727437842701,-500.0,0.00020273,2]
[339283299,1727437842710,-766.92,0.00020273,2]
[339283301,1727437842719,-500.0,0.00020273,2]
[339283303,1727437842728,-790.06,0.00020273,2]
[339283305,1727437842739,-885.05,0.00020273,2]
[339283307,1727437842748,-229.79980193,0.00020273,2]
[339283309,1727437842757,-500.0,0.00020273,2]
[339283311,1727437842766,-500.0,0.00020273,2]
[339283313,1727437842775,-1085.38,0.00020273,2]
[339283314,1727437842785,-500.0,0.00020273,2]
[339283317,1727437842796,-500.0,0.00020273,2]
[339283318,1727437842805,-2352.98,0.00020273,2]
[339283320,1727437842815,-1489.98,0.00020273,2]
[339283322,1727437842824,-1742.93,0.00020273,2]
[339283324,1727437842834,-500.0,0.00020273,2]
[339283326,1727437842843,-500.0,0.00020273,2]
[339283328,1727437842853,-320.21002844,0.00020273,2]
[339283330,1727437842865,-500.0,0.00020273,2]
[339283332,1727437842875,-500.0,0.00020273,2]
[339283334,1727437842884,-1448.63,0.00020273,2]
[339283336,1727437842892,-150.112233,0.000203,3]
[339283338,1727437842902,-501.86122269,0.00020373,2]
[339283340,1727437842914,-500.0,0.00020373,2]
[339283342,1727437842923,-500.0,0.00020373,2]
[339283344,1727437842932,-500.84471371,0.00020373,2]
[339283346,1727437842941,-500.0,0.00020373,2]
[339283348,1727437842951,-404.07975281,0.00020373,2]
[339283350,1727437842960,-160.0,0.00020376,2]
[339283352,1727437842969,-49689.68418015,0.00020377,2]
[339283356,1727437843009,-13072.79,0.00020273,2]
[339283358,1727437843019,-97123.31581985,0.00020377,2]
[339283360,1727437843028,-186.911765,0.00020377,2]
[339283362,1727437843038,-279.361945,0.00020377,2]
[339283364,1727437843048,-151.0,0.00020377,2]
[339283366,1727437843057,-201.931447,0.00020377,2]
[339283368,1727437843066,-201.931447,0.00020377,2]
[339283370,1727437843075,-151.029496,0.00020377,2]
[339283372,1727437843084,-151.0,0.00020377,2]
[339283374,1727437843093,-151.0,0.00020377,2]
[339283376,1727437843103,-151.0,0.00020377,2]
[339283378,1727437843112,-151.0,0.00020377,2]
[339283380,1727437843121,-151.0,0.00020377,2]
[339283382,1727437843131,-196.951696,0.00020377,2]
[339283384,1727437843139,-196.951696,0.00020377,2]
[339283386,1727437843149,-151.0,0.00020377,2]
[339283388,1727437843158,-151.0,0.00020377,2]
[339283390,1727437843167,-151.0,0.00020377,2]
[339283392,1727437843176,-151.0,0.00020377,2]
[339283394,1727437843185,-310.816321,0.00020377,2]
[339283396,1727437843194,-151.0,0.00020377,2]
[339283397,1727437843203,-151.0,0.00020377,2]
[339283399,1727437843212,-151.0,0.00020377,2]
[339283401,1727437843221,-151.0,0.00020377,2]
[339283403,1727437843231,-151.0,0.00020377,2]
[339283405,1727437843240,-152.85971,0.00020377,2]
[339283407,1727437843250,-151.0,0.00020377,2]
[339283409,1727437843259,-151.0,0.00020377,2]
[339283411,1727437843268,-151.0,0.00020377,2]
[339283413,1727437843277,-151.0,0.00020377,2]
[339283415,1727437843286,-151.445429,0.00020377,2]
[339283417,1727437843295,-151.445429,0.00020377,2]
[339283419,1727437843304,-151.0,0.00020377,2]
[339283421,1727437843313,-192.386243,0.00020377,2]
[339283423,1727437843322,-192.386243,0.00020377,2]
[339283425,1727437843330,-151.0,0.00020377,2]
[339283427,1727437843340,-193.425245,0.00020377,2]
[339283429,1727437843351,-193.425245,0.00020377,2]
[339283431,1727437843361,-212.022229,0.00020377,2]
[339283433,1727437843370,-151.0,0.00020377,2]
[339283435,1727437843379,-151.0,0.00020377,2]
[339283437,1727437843389,-332.134182,0.00020377,2]
[339283439,1727437843398,-332.134182,0.00020377,2]
[339283441,1727437843407,-151.203174,0.00020377,2]
[339283443,1727437843416,-151.203174,0.00020377,2]
[339283445,1727437843425,-151.0,0.00020377,2]
[339283447,1727437843434,-197.147342,0.00020377,2]
[339283448,1727437843443,-197.147342,0.00020377,2]
[339283450,1727437843452,-272.0,0.0002047,2]
[339283452,1727437843462,-1000.0,0.00020521,2]
[339283454,1727437843471,-1000.0,0.00020521,2]
[339283456,1727437843479,-1000.0,0.00020521,2]
[339283458,1727437843488,-1000.0,0.00020521,2]
[339283460,1727437843498,-200.0,0.00020547,2]
[339283462,1727437843508,-274.95150293,0.00020547,2]
[339283465,1727437843518,-894.05,0.00020547,2]
[339283467,1727437843529,-500.0,0.00020547,2]
[339283469,1727437843539,-500.0,0.00020547,2]
[339283471,1727437843548,-766.92,0.00020547,2]
[339283473,1727437843558,-500.0,0.00020547,2]
[339283475,1727437843568,-790.06,0.00020547,2]
[339283477,1727437843577,-885.05,0.00020547,2]
[339283479,1727437843586,-500.0,0.00020547,2]
[339283481,1727437843597,-482.4761541,0.00020547,2]
[339283483,1727437843607,-1085.38,0.00020547,2]
[339283485,1727437843618,-500.0,0.00020547,2]
[339283487,1727437843628,-500.0,0.00020547,2]
[339283489,1727437843637,-2352.98,0.00020547,2]
[339283491,1727437843646,-1489.98,0.00020547,2]
[339283493,1727437843656,-1742.93,0.00020547,2]
[339283495,1727437843666,-500.0,0.00020547,2]
[339283497,1727437843675,-500.0,0.00020547,2]
[339283499,1727437843684,-500.0,0.00020547,2]
[339283501,1727437843693,-500.0,0.00020547,2]
[339283503,1727437843702,-1448.63,0.00020547,2]
[339283504,1727437843711,-13072.79,0.00020547,2]
[339283506,1727437843720,-505.33,0.00020585,2]
[339283508,1727437843730,-150.112233,0.000206,5]
[339283510,1727437843739,-150.112247,0.000206,5]
[339283512,1727437843749,-587.0,0.00020649,2]
[339283514,1727437843758,-150.112233,0.000208,3]
[339283516,1727437843768,-150.112233,0.000208,3]
[339283518,1727437843777,-609.73991382,0.0002082,3]
[339283520,1727437843787,-200.0,0.00020821,2]
[339283522,1727437843798,-894.05,0.00020821,2]
[339283524,1727437843807,-500.0,0.00020821,2]
[339283526,1727437843817,-500.0,0.00020821,2]
[339283528,1727437843827,-766.92,0.00020821,2]
[339283530,1727437843838,-500.0,0.00020821,2]
[339283533,1727437843848,-790.06,0.00020821,2]
[339283534,1727437843858,-885.05,0.00020821,2]
[339283536,1727437843868,-500.0,0.00020821,2]
[339283538,1727437843877,-1085.38,0.00020821,2]
[339283540,1727437843887,-500.0,0.00020821,2]
[339283542,1727437843897,-500.0,0.00020821,2]
[339283544,1727437843906,-2352.98,0.00020821,2]
[339283546,1727437843920,-1489.98,0.00020821,2]
[339283548,1727437843929,-1742.93,0.00020821,2]
[339283550,1727437843939,-318.64864345,0.00020821,2]
[339283552,1727437843948,-500.0,0.00020821,2]
[339283554,1727437843959,-500.0,0.00020821,2]
[339283556,1727437843968,-500.0,0.00020821,2]
[339283558,1727437843978,-1448.63,0.00020821,2]
[339283560,1727437843988,-13072.79,0.00020821,2]
[339283562,1727437843998,-367.50169955,0.00020921,2]
[339283564,1727437844008,-1000.0,0.00020921,2]
[339283566,1727437844018,-1000.83854048,0.00020921,2]
[339283568,1727437844027,-272.0,0.0002095,2]
[339283569,1727437844037,-587.0,0.00020958,2]
[339283571,1727437844047,-3000.0,0.00020995,2]
[339283583,1727437844152,-3221.65,0.00021,2]
[339283585,1727437844163,-500.0,0.00021,30]
[339283587,1727437844172,-500.0,0.00021,30]
[339283589,1727437844181,-500.0,0.00021,30]
[339283591,1727437844190,-500.0,0.00021,30]
[339283593,1727437844199,-500.0,0.00021,30]
[339283595,1727437844208,-500.0,0.00021,30]
[339283597,1727437844217,-500.0,0.00021,30]
[339283599,1727437844226,-500.0,0.00021,30]
[339283601,1727437844236,-500.0,0.00021,30]
[339283603,1727437844245,-500.0,0.00021,30]
[339283605,1727437844256,-500.0,0.00021,30]
[339283607,1727437844265,-500.0,0.00021,30]
[339283609,1727437844274,-500.0,0.00021,30]
[339283611,1727437844283,-500.0,0.00021,30]
[339283613,1727437844292,-500.0,0.00021,30]
[339283615,1727437844301,-3000.0,0.00021,2]
[339283617,1727437844310,-500.0,0.00021,30]
[339283619,1727437844319,-500.0,0.00021,30]
[339283621,1727437844329,-500.0,0.00021,30]
[339283623,1727437844338,-500.0,0.00021,30]
[339283625,1727437844347,-500.0,0.00021,30]
[339283627,1727437844357,-500.0,0.00021,30]
[339283629,1727437844366,-500.0,0.00021,30]
[339283631,1727437844376,-500.0,0.00021,30]
[339283633,1727437844387,-500.0,0.00021,30]
[339283635,1727437844397,-500.0,0.00021,30]
[339283637,1727437844408,-500.0,0.00021,30]
[339283640,1727437844419,-500.0,0.00021,30]
[339283642,1727437844429,-500.0,0.00021,30]
[339283644,1727437844440,-800.0,0.00021,30]
[339283646,1727437844449,-151.0,0.00021,2]
[339283648,1727437844458,-151.0,0.00021,2]
[339283650,1727437844467,-151.203174,0.00021,2]
[339283652,1727437844477,-151.203174,0.00021,2]
[339283654,1727437844486,-151.0,0.00021,2]
[339283656,1727437844495,-197.147342,0.00021,2]
[339283658,1727437844505,-197.147342,0.00021,2]
[339283660,1727437844516,-500.0,0.00021,30]
[339283662,1727437844526,-500.0,0.00021,30]
[339283664,1727437844535,-276.8824371,0.00021,30]
[339283666,1727437844545,-500.0,0.00021,30]
[339283668,1727437844554,-500.0,0.00021,30]
[339283670,1727437844563,-500.0,0.00021,30]
[339283672,1727437844572,-500.0,0.00021,30]
[339283674,1727437844583,-500.0,0.00021,30]
[339283676,1727437844592,-500.0,0.00021,30]
[339283678,1727437844601,-500.0,0.00021,30]
[339283679,1727437844610,-499.3,0.00021,30]
[339283680,1727437844620,-504.39221637,0.00021,30]
[339283681,1727437844629,-504.42998189,0.00021,30]
[339283682,1727437844639,-500.0,0.00021,30]
[339283683,1727437844648,-546.55036028,0.00021,30]
[339283684,1727437844657,-500.0,0.00021,30]
[339283685,1727437844666,-161.86014978,0.00021,30]
[339283686,1727437844675,-500.0,0.00021,30]
[339283688,1727437844684,-500.0,0.00021,30]
[339283690,1727437844693,-154.74467129,0.00021,30]
[339283692,1727437844703,-500.0,0.00021,30]
[339283694,1727437844712,-500.0,0.00021,30]
[339283696,1727437844721,-500.0,0.00021,30]
[339283698,1727437844730,-500.0,0.00021,30]
[339283700,1727437844739,-500.0,0.00021,30]
[339283702,1727437844748,-500.0,0.00021,30]
[339283704,1727437844759,-500.0,0.00021,30]
[339283706,1727437844770,-500.0,0.00021,30]
[339283708,1727437844779,-500.0,0.00021,30]
[339283710,1727437844788,-500.0,0.00021,30]
[339283712,1727437844797,-500.0,0.00021,30]
[339283714,1727437844807,-939.9144285,0.00021,30]
[339283716,1727437844816,-499.3,0.00021,30]
[339283718,1727437844826,-154.74467129,0.00021,30]
[339283720,1727437844835,-500.0,0.00021,30]
[339283722,1727437844844,-500.0,0.00021,30]
[339283724,1727437844853,-500.0,0.00021,30]
[339283726,1727437844863,-500.0,0.00021,30]
[339283728,1727437844873,-500.0,0.00021,30]
[339283730,1727437844882,-559.82866608,0.00021,30]
[339283732,1727437844892,-500.0,0.00021,30]
[339283735,1727437844903,-500.0,0.00021,30]
[339283737,1727437844915,-500.0,0.00021,30]
[339283739,1727437844926,-500.0,0.00021,30]
[339283741,1727437844936,-500.0,0.00021,30]
[339283743,1727437844947,-500.0,0.00021,30]
[339283745,1727437844959,-500.0,0.00021,30]
[339283747,1727437844969,-500.0,0.00021,30]
[339283749,1727437844978,-3000.0,0.0002101,2]
[339283751,1727437844988,-151.0,0.0002101,2]
[339283753,1727437844997,-151.0,0.0002101,2]
[339283755,1727437845008,-151.0,0.0002101,2]
[339283757,1727437845017,-3000.0,0.0002102,2]
[339283759,1727437845026,-151.445429,0.0002102,2]
[339283761,1727437845035,-151.445429,0.0002102,2]
[339283763,1727437845045,-192.386243,0.0002102,2]
[339283765,1727437845054,-192.386243,0.0002102,2]
[339283767,1727437845063,-193.425245,0.0002102,2]
[339283769,1727437845073,-193.425245,0.0002102,2]
[339283771,1727437845082,-3000.0,0.0002103,2]
[339283773,1727437845091,-3000.0,0.0002104,2]
[339283775,1727437845101,-3000.0,0.0002105,2]
[339283777,1727437845111,-205.117308,0.0002106,2]
[339283779,1727437845120,-3000.0,0.0002106,2]
[339283781,1727437845129,-3000.0,0.0002107,2]
[339283783,1727437845138,-3000.0,0.0002108,2]
[339283785,1727437845147,-3000.0,0.0002109,2]
[339283787,1727437845157,-200.0,0.00021095,2]
[339283789,1727437845166,-201.931447,0.00021095,2]
[339283791,1727437845175,-201.931447,0.00021095,2]
[339283793,1727437845184,-151.0,0.00021095,2]
[339283795,1727437845193,-151.0,0.00021095,2]
[339283797,1727437845204,-151.0,0.00021095,2]
[339283799,1727437845213,-151.0,0.00021095,2]
[339283801,1727437845223,-151.0,0.00021095,2]
[339283803,1727437845233,-894.05,0.00021095,2]
[339283805,1727437845242,-500.0,0.00021095,2]
[339283807,1727437845251,-500.0,0.00021095,2]
[339283809,1727437845261,-196.951696,0.00021095,2]
[339283811,1727437845271,-196.951696,0.00021095,2]
[339283813,1727437845280,-151.0,0.00021095,2]
[339283815,1727437845289,-151.0,0.00021095,2]
[339283817,1727437845299,-766.92,0.00021095,2]
[339283819,1727437845308,-151.0,0.00021095,2]
[339283821,1727437845318,-151.0,0.00021095,2]
[339283823,1727437845327,-500.0,0.00021095,2]
[339283825,1727437845336,-790.06,0.00021095,2]
[339283827,1727437845346,-310.816321,0.00021095,2]
[339283829,1727437845355,-885.05,0.00021095,2]
[339283831,1727437845368,-151.0,0.00021095,2]
[339283833,1727437845378,-151.0,0.00021095,2]
[339283835,1727437845387,-151.942376,0.00021095,2]
[339283837,1727437845396,-500.0,0.00021095,2]
[339283839,1727437845406,-151.0,0.00021095,2]
[339283841,1727437845415,-151.0,0.00021095,2]
[339283843,1727437845425,-151.0,0.00021095,2]
[339283845,1727437845434,-151.0,0.00021095,2]
[339283847,1727437845443,-1085.38,0.00021095,2]
[339283849,1727437845452,-500.0,0.00021095,2]
[339283851,1727437845461,-500.0,0.00021095,2]
[339283853,1727437845470,-2352.98,0.00021095,2]
[339283855,1727437845480,-171.525076,0.00021095,2]
[339283857,1727437845489,-1489.98,0.00021095,2]
[339283859,1727437845499,-1742.93,0.00021095,2]
[339283861,1727437845507,-332.134182,0.00021095,2]
[339283863,1727437845517,-332.134182,0.00021095,2]
[339283865,1727437845526,-500.0,0.00021095,2]
[339283867,1727437845536,-500.0,0.00021095,2]
[339283869,1727437845546,-500.0,0.00021095,2]
[339283871,1727437845556,-1448.63,0.00021095,2]
[339283873,1727437845567,-13072.79,0.00021095,2]
[339283875,1727437845576,-150.112233,0.000211,2]
[339283877,1727437845586,-3000.0,0.000211,2]
[339283879,1727437845595,-3000.0,0.0002111,2]
[339283881,1727437845605,-3000.0,0.0002112,2]
[339283883,1727437845617,-3000.0,0.0002113,2]
[339283885,1727437845627,-3000.0,0.0002114,2]
[339283887,1727437845637,-465.00414016,0.00021144,2]
[339283889,1727437845646,-3000.0,0.0002115,2]
[339283891,1727437845656,-153.0,0.00021151,2]
[339283893,1727437845665,-153.0,0.00021151,2]
[339283895,1727437845675,-153.0,0.00021151,2]
[339283897,1727437845685,-3000.0,0.0002116,2]
[339283899,1727437845694,-500.0,0.00021164,2]
[339283901,1727437845703,-3000.0,0.0002117,2]
[339283903,1727437845713,-153.424126,0.00021178,2]
[339283905,1727437845723,-153.0,0.00021178,2]
[339283907,1727437845733,-153.0,0.00021178,2]
[339283909,1727437845742,-3000.0,0.0002118,2]
[339283911,1727437845751,-3000.0,0.0002119,2]
[339283913,1727437845760,-3000.0,0.000212,2]
[339283915,1727437845770,-151.0,0.000212,2]
[339283917,1727437845779,-151.0,0.000212,2]
[339283919,1727437845788,-151.203174,0.000212,2]
[339283921,1727437845798,-151.203174,0.000212,2]
[339283923,1727437845808,-3000.0,0.0002121,2]
[339283925,1727437845818,-151.0,0.0002121,2]
[339283927,1727437845827,-197.147342,0.0002121,2]
[339283929,1727437845836,-197.147342,0.0002121,2]
[339283931,1727437845846,-3000.0,0.0002122,2]
[339283933,1727437845855,-2953.59059489,0.0002123,2]
[339284019,1727437846680,-153.0,0.00019781,2]
[339284021,1727437846692,-153.0,0.00019781,2]
[339284023,1727437846701,-153.0,0.00019781,2]
[339284025,1727437846710,-153.0,0.00019781,2]
[339284027,1727437846720,-46.40940511,0.0002123,2]
[339284028,1727437846729,-501.07211232,0.00021231,2]
[339284029,1727437846740,-1508.57077754,0.00021231,2]
[339284030,1727437846750,-1500.0,0.00021231,2]
[339284031,1727437846760,-2372.44770503,0.0002124,2]
[339284039,1727437847356,-627.55229497,0.0002124,2]
[339284041,1727437847367,-26.60770503,0.0002125,2]
[339285899,1727438073772,7008.84,0.00014111,10]
[339285905,1727438367809,152.04,0.00010959,2]
[339285906,1727438378313,760.23,0.00010959,2]
[339285908,1727438407337,-189.94062,0.00015659,2]
[339285909,1727438407361,-1077.8590213,0.00015872,2]
[339285910,1727438407384,-166.6666688,0.00016202,2]
[339285911,1727438407408,-300.0,0.00016482,2]
[339285912,1727438407432,-300.0,0.00016482,2]
[339285913,1727438407456,-24900.0,0.00016483,2]
[339285914,1727438407480,-181.75338536,0.00016506,2]
[339285915,1727438407504,-247.609074,0.00016606,2]
[339285916,1727438407529,-247.609074,0.00016652,2]
[339285917,1727438407552,-247.609074,0.00016697,2]
[339285918,1727438407579,-180.377391,0.00016712,2]
[339285919,1727438407603,-247.609074,0.00016743,2]
[339285920,1727438407632,-247.609074,0.00016788,2]
[339285921,1727438407655,-272.0,0.000168,2]
[339285922,1727438407679,-247.609074,0.00016834,2]
[339285923,1727438407703,-247.609074,0.00016879,2]
[339285924,1727438407726,-247.609074,0.00016925,2]
[339285925,1727438407752,-247.609074,0.0001697,2]
[339285939,1727438807141,-187.85919799,0.0001529,2]
[339285940,1727438849225,-8.88126141,0.0001529,2]
[339285941,1727438849245,-141.16104764,0.00015401,2]
[339285952,1727438959100,-272.05617546,0.00015401,2]
[339285953,1727438959122,-2926.982889,0.00016,2]
[339285954,1727438959142,-849.5556434,0.00016006,2]
[339285955,1727438959163,-2056.6736996,0.0001619,2]
[339285956,1727438959184,-300.0,0.00016208,2]
[339285957,1727438959206,-300.0,0.00016208,2]
[339285958,1727438959228,-500.0,0.00016209,2]
[339285959,1727438959249,-500.0,0.00016209,2]